bitfinex/quotes_BTCUSD_20230118
["timestamp","ask_amount","ask_price","bid_price","bid_amount"]
[1674071615074,0.0050583,20922.0,20921.0,2.93958105]
[1674071615585,0.0050583,20922.0,20921.0,2.012452]
[1674071616615,0.0050583,20922.0,20921.0,1.96748105]
[1674071616870,0.0050583,20922.0,20921.0,2.35948105]
[1674071617686,0.0050583,20922.0,20921.0,2.312452]
[1674071620060,0.0050583,20922.0,20921.0,2.43678105]
[1674071620329,0.0050583,20922.0,20921.0,3.33323858]
[1674071621124,0.0050583,20922.0,20921.0,3.41276578]
[1674071621342,0.0050583,20922.0,20921.0,3.33323858]
[1674071621660,0.0050583,20922.0,20921.0,2.43678105]
[1674071622725,0.0050583,20922.0,20921.0,3.33335945]
[1674071623178,0.0050583,20922.0,20921.0,3.50488665]
[1674071623442,0.0050583,20922.0,20921.0,3.33335945]
[1674071624731,0.0050583,20922.0,20921.0,2.85537145]
[1674071625485,0.0050583,20922.0,20921.0,1.95879305]
[1674071626053,0.0844583,20922.0,20921.0,1.88149305]
[1674071626419,0.0844583,20922.0,20921.0,1.57299305]
[1674071626582,0.0050583,20922.0,20921.0,1.57299305]
[1674071626886,0.0844583,20922.0,20921.0,1.57299305]
[1674071627118,0.0050583,20922.0,20921.0,1.09500505]
[1674071627391,0.0844583,20922.0,20921.0,1.09500505]
[1674071627648,0.0050583,20922.0,20921.0,1.356476]
[1674071630474,0.0050583,20922.0,20921.0,1.834464]
[1674071630668,0.0050583,20922.0,20921.0,1.356476]
[1674071633003,0.0050583,20922.0,20921.0,1.834464]
[1674071634740,0.0050583,20922.0,20921.0,1.356476]
[1674071637281,0.00496844,20922.0,20921.0,1.356476]
[1674071637793,0.00496844,20922.0,20921.0,2.14384788]
[1674071638784,0.00496844,20922.0,20921.0,2.25817991]
[1674071639281,0.00496844,20922.0,20921.0,2.14384788]
[1674071639770,0.00496844,20922.0,20921.0,2.62183588]
[1674071640025,0.00496844,20922.0,20921.0,2.73616791]
[1674071640515,0.00496844,20922.0,20921.0,2.25817991]
[1674071640782,0.00496844,20922.0,20921.0,2.73616791]
[1674071641054,0.00496844,20922.0,20921.0,2.25817991]
[1674071642031,0.00496844,20922.0,20921.0,1.95817991]
[1674071642290,0.00496844,20922.0,20921.0,1.056476]
[1674071642798,0.00496844,20922.0,20921.0,0.1005]
[1674071643312,0.00496844,20922.0,20921.0,0.578488]
[1674071643562,0.00496844,20922.0,20921.0,0.1005]
[1674071643829,0.00496844,20922.0,20921.0,0.0085]
[1674071644083,0.00496844,20922.0,20921.0,0.0135]
[1674071645566,0.00496844,20922.0,20921.0,0.3135]
[1674071646403,0.00496844,20922.0,20921.0,0.791488]
[1674071646592,0.00496844,20922.0,20921.0,1.269476]
[1674071646827,0.00496844,20922.0,20921.0,2.19940544]
[1674071647590,0.00496844,20922.0,20921.0,2.15237639]
[1674071647856,0.00496844,20922.0,20921.0,2.14737639]
[1674071648342,0.00496844,20922.0,20921.0,2.23737639]
[1674071648591,0.00496844,20922.0,20921.0,2.14737639]
[1674071648855,0.00496844,20922.0,20921.0,2.23737639]
[1674071649407,0.00496844,20922.0,20921.0,1.354476]
[1674071650668,0.00496844,20922.0,20921.0,0.3985]
[1674071650867,0.00496844,20922.0,20921.0,0.0985]
[1674071652626,0.31992144,20922.0,20921.0,0.0985]
[1674071653395,0.31803744,20922.0,20921.0,0.0985]
[1674071654120,0.00496844,20922.0,20921.0,0.0985]
[1674071654625,0.96089844,20922.0,20921.0,0.0985]
[1674071654889,1.44679544,20922.0,20921.0,0.09]
[1674071655148,1.29679544,20922.0,20921.0,0.09]
[1674071656401,1.77476044,20922.0,20921.0,0.09]
[1674071656729,2.2145227,20922.0,20921.0,0.09]
[1674071657145,2.1002605,20922.0,20921.0,0.09]
[1674071657403,2.32910911,20922.0,20921.0,1e-08]
[1674071657650,0.15,20921.0,20918.0,5.27e-05]
[1674071657904,1.766686,20920.0,20918.0,5.27e-05]
[1674071658168,0.5389,20919.0,20918.0,5.27e-05]
[1674071658406,1.973002,20919.0,20918.0,5.27e-05]
[1674071659953,2.28095148,20919.0,20918.0,5.27e-05]
[1674071662560,2.35845148,20919.0,20918.0,5.27e-05]
[1674071662812,2.35845148,20919.0,20913.0,0.34828215]
[1674071663068,0.70095485,20918.0,20914.0,0.0085]
[1674071663318,1.756478,20917.0,20914.0,0.0085]
[1674071663566,1.434252,20917.0,20914.0,0.0085]
[1674071664581,0.324592,20916.0,20914.0,0.0085]
[1674071664856,0.324592,20916.0,20913.0,0.34828215]
[1674071664857,1.28606,20915.0,20913.0,0.04828215]
[1674071665131,0.95625,20915.0,20913.0,0.04828215]
[1674071665380,1.434375,20915.0,20912.0,0.31512367]
[1674071665657,1.434375,20915.0,20913.0,0.0085]
[1674071665911,0.478125,20915.0,20913.0,0.0085]
[1674071666398,0.478111,20916.0,20913.0,0.0085]
[1674071666654,0.478111,20916.0,20913.0,0.486666]
[1674071666900,0.478111,20916.0,20914.0,0.3]
[1674071667166,0.045,20915.0,20914.0,0.3]
[1674071667417,0.478111,20916.0,20914.0,0.3085]
[1674071667688,6e-05,20915.0,20914.0,0.778148]
[1674071667928,6e-05,20915.0,20914.0,0.786648]
[1674071669155,0.04506,20915.0,20914.0,1.742944]
[1674071669913,0.04506,20915.0,20914.0,1.264796]
[1674071670410,0.04506,20915.0,20914.0,0.3085]
[1674071671156,0.04506,20915.0,20914.0,0.486648]
[1674071671400,0.04506,20915.0,20914.0,1.264796]
[1674071672643,0.04506,20915.0,20914.0,1.414796]
[1674071673155,0.04506,20915.0,20914.0,1.892944]
[1674071673404,0.04506,20915.0,20914.0,1.93997305]
[1674071673649,0.04506,20915.0,20914.0,2.05430508]
[1674071674141,0.04506,20915.0,20914.0,1.93997305]
[1674071674689,0.04506,20915.0,20914.0,1.78997305]
[1674071674690,6e-05,20915.0,20914.0,1.78997305]
[1674071674947,0.00806,20915.0,20914.0,1.80097305]
[1674071675213,6e-05,20915.0,20914.0,1.78997305]
[1674071675466,0.00806,20915.0,20914.0,1.80097305]
[1674071675727,6e-05,20915.0,20914.0,1.78997305]
[1674071676057,6e-05,20915.0,20914.0,1.80097305]
[1674071676058,0.00806,20915.0,20914.0,1.80097305]
[1674071676264,6e-05,20915.0,20914.0,1.78997305]
[1674071676517,0.00806,20915.0,20914.0,1.95097305]
[1674071676778,6e-05,20915.0,20914.0,1.93997305]
[1674071677091,6e-05,20915.0,20914.0,2.73902678]
[1674071677540,6e-05,20915.0,20914.0,3.03736039]
[1674071677797,6e-05,20915.0,20914.0,3.06548308]
[1674071678066,6e-05,20915.0,20914.0,2.95115105]
[1674071678374,0.00806,20915.0,20914.0,2.95615105]
[1674071678586,0.008,20915.0,20914.0,3.29921481]
[1674071678830,6e-05,20919.0,20914.0,4.18709122]
[1674071679081,6e-05,20919.0,20918.0,0.0772]
[1674071679339,6e-05,20919.0,20918.0,1.511371]
[1674071679596,6e-05,20919.0,20918.0,2.01690005]
[1674071679877,6e-05,20919.0,20918.0,1.86690005]
[1674071680869,0.00806,20919.0,20918.0,1.87290005]
[1674071681649,0.00806,20919.0,20918.0,1.825871]
[1674071682659,0.00806,20919.0,20918.0,1.975871]
[1674071683880,0.00806,20919.0,20918.0,1.825871]
[1674071687778,0.00806,20919.0,20918.0,1.82700928]
[1674071688524,0.00806,20919.0,20918.0,1.748671]
[1674071688787,0.008,20919.0,20918.0,1.748671]
[1674071693340,0.008,20919.0,20918.0,1.74975521]
[1674071694061,0.008,20919.0,20918.0,1.748671]
[1674071694305,0.008,20919.0,20918.0,1.270614]
[1674071695330,0.008,20919.0,20918.0,1.748671]
[1674071696549,0.008,20919.0,20918.0,1.270614]
[1674071698834,0.008,20919.0,20918.0,1.420614]
[1674071699090,0.008,20919.0,20918.0,1.898671]
[1674071699356,0.008,20919.0,20918.0,3.01894306]
[1674071699620,0.008,20919.0,20918.0,2.65505029]
[1674071700125,0.008,20919.0,20918.0,2.65522048]
[1674071700368,0.008,20919.0,20918.0,2.54105998]
[1674071701120,0.008,20919.0,20918.0,2.42666758]
[1674071701364,0.008,20919.0,20918.0,2.5129101]
[1674071701640,0.008,20919.0,20918.0,2.81938224]
[1674071701903,0.008,20919.0,20918.0,3.01911879]
[1674071702156,0.00788755,20919.0,20918.0,3.01911879]
[1674071702668,0.00788755,20919.0,20918.0,3.01911377]
[1674071702927,0.00788755,20919.0,20918.0,2.86911353]
[1674071703157,0.00788755,20919.0,20918.0,2.66937698]
[1674071703651,0.00788755,20919.0,20918.0,2.86910975]
[1674071703970,0.00788755,20919.0,20918.0,3.17438131]
[1674071704405,0.00788755,20919.0,20918.0,3.09688131]
[1674071705161,0.00788755,20919.0,20918.0,2.81119019]
[1674071705422,0.00788755,20919.0,20918.0,2.80643085]
[1674071705652,0.00788755,20919.0,20918.0,2.97799902]
[1674071705902,0.00788755,20919.0,20918.0,2.80643085]
[1674071706166,0.00788755,20919.0,20918.0,2.9780557]
[1674071709526,0.00788755,20919.0,20918.0,2.93102665]
[1674071709793,0.00788755,20919.0,20918.0,2.9780557]
[1674071710255,0.00788755,20919.0,20918.0,2.80643085]
[1674071710759,0.00788755,20919.0,20918.0,2.97809896]
[1674071711237,0.00788755,20919.0,20918.0,2.74954606]
[1674071711511,0.00788755,20919.0,20918.0,2.66417886]
[1674071711709,0.00788755,20919.0,20918.0,2.36417886]
[1674071711959,0.00788755,20919.0,20918.0,1.49094071]
[1674071712960,0.00788755,20919.0,20918.0,1.01288371]
[1674071713450,0.00788755,20919.0,20918.0,1.31288371]
[1674071713723,0.00788755,20919.0,20918.0,0.36152905]
[1674071713964,0.31724855,20919.0,20918.0,0.06152905]
[1674071714219,0.00788755,20919.0,20918.0,0.006]
[1674071714739,0.33876555,20919.0,20918.0,0.006]
[1674071715024,0.00788755,20919.0,20918.0,0.006]
[1674071715261,0.00788755,20919.0,20918.0,0.0145]
[1674071716018,0.96395555,20919.0,20918.0,0.0145]
[1674071716276,1.29672955,20919.0,20918.0,0.0145]
[1674071716530,1.77476355,20919.0,20918.0,0.0145]
[1674071716832,2.02916161,20919.0,20918.0,0.006]
[1674071717622,2.02127406,20919.0,20914.0,0.16201631]
[1674071717819,0.314533,20918.0,20914.0,0.64015231]
[1674071718035,0.803608,20917.0,20915.0,0.3]
[1674071718283,0.330889,20916.0,20915.0,0.3]
[1674071718530,0.956174,20917.0,20915.0,0.3085]
[1674071718756,0.956186,20917.0,20916.0,0.3085]
[1674071719010,0.47808,20917.0,20916.0,0.0085]
[1674071719238,0.478076,20918.0,20915.0,0.0085]
[1674071719497,1.07327717,20917.0,20913.0,0.59260182]
[1674071719737,1.07327717,20917.0,20915.0,0.001]
[1674071719738,0.74657117,20917.0,20915.0,0.001]
[1674071719999,0.79357117,20917.0,20915.0,0.001]
[1674071720230,0.74657117,20917.0,20914.0,0.0085]
[1674071720481,1.22465117,20917.0,20914.0,0.0085]
[1674071721075,1.27165117,20917.0,20915.0,0.001]
[1674071721253,0.95616,20917.0,20914.0,0.12294882]
[1674071721503,0.96116,20917.0,20914.0,0.3135]
[1674071721782,0.96122,20917.0,20914.0,0.3135]
[1674071722545,0.336956,20916.0,20914.0,0.3135]
[1674071722792,0.334951,20915.0,20914.0,0.3135]
[1674071723045,0.47811,20916.0,20914.0,0.0135]
[1674071723327,0.47811,20916.0,20915.0,0.3]
[1674071723588,0.956212,20916.0,20915.0,0.3]
[1674071723834,1.271115,20916.0,20914.0,0.0135]
[1674071724067,0.327949,20915.0,20914.0,0.005]
[1674071724309,0.005,20915.0,20914.0,0.005]
[1674071724553,0.478125,20915.0,20912.0,0.79330767]
[1674071724809,0.478125,20915.0,20913.0,0.0085]
[1674071725823,0.96125,20915.0,20914.0,0.005]
[1674071726078,1.252009,20915.0,20913.0,0.0085]
[1674071726403,0.326015,20914.0,20913.0,0.0135]
[1674071726591,0.326015,20914.0,20913.0,0.0085]
[1674071726841,1.282311,20914.0,20912.0,0.01512367]
[1674071727085,0.328956,20913.0,20912.0,0.00512367]
[1674071727369,1.50107637,20913.0,20912.0,0.00512367]
[1674071727851,1.17212037,20913.0,20912.0,0.00512367]
[1674071728109,0.69394937,20913.0,20912.0,0.00512367]
[1674071728863,0.69394937,20913.0,20912.0,0.01012367]
[1674071729116,0.69400937,20913.0,20912.0,0.00512367]
[1674071729369,0.563231,20913.0,20912.0,0.00612367]
[1674071730398,0.08506,20913.0,20912.0,0.00612367]
[1674071731465,0.563231,20913.0,20912.0,0.00612367]
[1674071731716,0.885567,20913.0,20912.0,0.00612367]
[1674071731963,0.563231,20913.0,20912.0,0.00612367]
[1674071732212,1.041402,20913.0,20912.0,0.00701217]
[1674071732469,0.563231,20913.0,20912.0,0.01462367]
[1674071732707,0.08506,20913.0,20912.0,0.01462367]
[1674071733218,0.085,20913.0,20912.0,0.01462367]
[1674071733468,0.085,20913.0,20912.0,0.31462367]
[1674071736238,0.563171,20913.0,20912.0,0.01462367]
[1674071736519,1.360999,20913.0,20912.0,0.00612367]
[1674071736799,1.83917,20913.0,20912.0,0.00612367]
[1674071737537,1.041342,20913.0,20912.0,0.00612367]
[1674071737806,0.085,20913.0,20912.0,0.00612367]
[1674071738104,0.085,20913.0,20912.0,0.01462367]
[1674071738297,0.085,20913.0,20912.0,0.31462367]
[1674071738544,0.085,20913.0,20912.0,0.79281767]
[1674071739818,0.085,20913.0,20912.0,1.27101167]
[1674071740061,0.085,20913.0,20912.0,1.46533264]
[1674071740319,0.085,20913.0,20912.0,1.87313472]
[1674071740602,0.085,20913.0,20912.0,1.44485306]
[1674071741099,0.085,20913.0,20912.0,1.55930188]
[1674071741345,0.085,20913.0,20912.0,1.78620188]
[1674071742132,0.085,20913.0,20912.0,1.78520188]
[1674071742392,0.007,20913.0,20912.0,1.79920188]
[1674071742634,0.007,20913.0,20912.0,2.77900357]
[1674071742972,6e-05,20914.0,20913.0,0.15]
[1674071743165,6e-05,20914.0,20913.0,1.269842]
[1674071743456,6e-05,20914.0,20913.0,1.61687105]
[1674071744193,0.00706,20914.0,20913.0,1.63087105]
[1674071746774,6e-05,20914.0,20913.0,1.61687105]
[1674071746973,0.00706,20914.0,20913.0,1.63087105]
[1674071747495,0.00706,20914.0,20913.0,1.88154205]
[1674071747759,0.00706,20914.0,20913.0,1.834513]
[1674071750233,0.00706,20914.0,20913.0,1.347842]
[1674071750472,0.00706,20914.0,20913.0,1.270342]
[1674071751234,0.006963,20914.0,20913.0,1.270342]
[1674071751504,0.006963,20914.0,20913.0,1.748513]
[1674071751740,0.006963,20914.0,20913.0,1.99599087]
[1674071751967,0.006963,20914.0,20913.0,2.63801218]
[1674071752704,0.006963,20914.0,20913.0,2.80968029]
[1674071752929,0.006963,20914.0,20913.0,2.83783571]
[1674071753243,0.006963,20914.0,20913.0,2.63801218]
[1674071754092,0.006963,20914.0,20913.0,2.80968029]
[1674071754532,0.006963,20914.0,20913.0,2.63801218]
[1674071754754,0.006963,20914.0,20913.0,2.80968029]
[1674071755554,0.006963,20914.0,20913.0,2.63801218]
[1674071755836,0.006963,20914.0,20913.0,2.59098313]
[1674071756076,0.006963,20914.0,20913.0,2.76265124]
[1674071756334,0.006963,20914.0,20913.0,2.59098313]
[1674071756839,0.006963,20914.0,20913.0,2.76265124]
[1674071757098,0.006963,20914.0,20913.0,2.83784631]
[1674071757350,0.006963,20914.0,20913.0,2.8374205]
[1674071757637,0.006963,20914.0,20913.0,2.9144205]
[1674071759934,0.006963,20914.0,20913.0,3.14327456]
[1674071760190,0.006963,20914.0,20913.0,2.61478875]
[1674071760516,0.006963,20914.0,20913.0,2.33748795]
[1674071761754,0.006963,20914.0,20913.0,2.63748795]
[1674071762311,0.006963,20914.0,20913.0,2.63763041]
[1674071762561,0.006963,20914.0,20913.0,2.80926519]
[1674071762810,0.006963,20914.0,20913.0,2.83742369]
[1674071763617,0.006963,20914.0,20913.0,2.80926519]
[1674071764101,0.006963,20914.0,20913.0,2.63763041]
[1674071764349,0.006963,20914.0,20913.0,2.56063041]
[1674071764605,0.006963,20914.0,20913.0,2.73226519]
[1674071764869,0.006963,20914.0,20913.0,2.56063041]
[1674071765137,0.006963,20914.0,20913.0,2.70321762]
[1674071765401,0.006963,20914.0,20913.0,2.98890874]
[1674071765645,0.006963,20914.0,20913.0,2.76005468]
[1674071766661,0.006963,20914.0,20913.0,2.98887268]
[1674071767685,0.006963,20914.0,20913.0,2.65615251]
[1674071767904,0.006963,20914.0,20913.0,2.98887268]
[1674071768429,0.006963,20914.0,20913.0,2.70318156]
[1674071768693,0.006963,20914.0,20913.0,2.87482061]
[1674071768969,0.006963,20914.0,20913.0,2.57467815]
[1674071769202,0.006963,20914.0,20913.0,2.26049457]
[1674071769749,0.006963,20914.0,20913.0,2.21346552]
[1674071770036,0.006963,20914.0,20913.0,2.24162902]
[1674071770263,0.006963,20914.0,20913.0,2.82765486]
[1674071770523,0.006963,20914.0,20913.0,2.87468391]
[1674071770765,0.006963,20914.0,20913.0,2.64586591]
[1674071771065,0.006963,20914.0,20913.0,2.76030636]
[1674071771294,0.00685887,20914.0,20913.0,2.76030636]
[1674071771538,0.00685887,20914.0,20913.0,2.73214286]
[1674071771794,0.00685887,20914.0,20913.0,2.71327839]
[1674071772029,0.00685887,20914.0,20913.0,2.64586699]
[1674071772299,0.00685887,20914.0,20913.0,2.87468499]
[1674071772546,0.00685887,20914.0,20913.0,2.87482745]
[1674071772796,0.00685887,20914.0,20913.0,2.76048752]
[1674071773296,0.00685887,20914.0,20913.0,2.64600945]
[1674071774323,0.00685887,20914.0,20913.0,2.87482745]
[1674071775636,0.00685887,20914.0,20913.0,2.64600945]
[1674071776168,0.00685887,20914.0,20913.0,2.87482745]
[1674071776938,0.00685887,20914.0,20913.0,2.64600945]
[1674071777187,0.00685887,20914.0,20913.0,2.87482745]
[1674071777465,0.00685887,20914.0,20913.0,2.7031884]
[1674071777721,0.00685887,20914.0,20913.0,2.98887952]
[1674071777961,0.00685887,20914.0,20913.0,2.76006152]
[1674071780568,0.00685887,20914.0,20913.0,1.38998589]
[1674071780851,0.00685887,20914.0,20913.0,0.80578717]
[1674071781076,0.34123787,20914.0,20913.0,0.014]
[1674071781357,0.334379,20914.0,20912.0,0.59793805]
[1674071781612,0.314077,20913.0,20912.0,1.07612105]
[1674071781922,0.555127,20915.0,20912.0,1.67728185]
[1674071782130,0.555127,20915.0,20912.0,1.07612105]
[1674071782403,0.007,20914.0,20913.0,0.013]
[1674071782674,0.321686,20914.0,20912.0,1.07612105]
[1674071783021,0.004,20913.0,20912.0,0.13175805]
[1674071783244,0.478171,20913.0,20912.0,0.00512367]
[1674071783471,0.781029,20913.0,20912.0,0.01712367]
[1674071783754,0.478171,20913.0,20912.0,0.01712367]
[1674071784083,0.810301,20913.0,20912.0,0.00512367]
[1674071784286,0.478171,20913.0,20912.0,0.01712367]
[1674071784789,0.478171,20913.0,20912.0,0.31712367]
[1674071785757,0.478171,20913.0,20912.0,0.30512367]
[1674071785980,0.529171,20913.0,20912.0,0.30712367]
[1674071786499,0.861629,20913.0,20912.0,0.30712367]
[1674071786748,0.841977,20913.0,20912.0,0.30712367]
[1674071786966,0.529171,20913.0,20912.0,0.30712367]
[1674071787221,0.840431,20913.0,20912.0,0.30712367]
[1674071787981,0.529171,20913.0,20912.0,0.00712367]
[1674071788258,0.856456,20913.0,20912.0,0.00712367]
[1674071788757,0.529171,20913.0,20912.0,0.00712367]
[1674071789242,0.861222,20913.0,20912.0,0.00712367]
[1674071789725,0.383051,20913.0,20912.0,0.00712367]
[1674071790499,0.051,20913.0,20912.0,0.30712367]
[1674071791253,0.383784,20913.0,20912.0,0.00712367]
[1674071791588,1.895797,20913.0,20912.0,0.00712367]
[1674071796688,2.94429502,20913.0,20912.0,0.00712367]
[1674071796927,2.94429502,20913.0,20909.0,0.01544948]
[1674071796928,3.35316627,20913.0,20909.0,0.01544948]
[1674071797168,0.84380407,20912.0,20909.0,0.01544948]
[1674071797452,0.155,20910.0,20909.0,0.01544948]
[1674071797694,0.488075,20910.0,20909.0,0.01544948]
[1674071797993,2.072795,20910.0,20909.0,0.01544948]
[1674071799597,2.33893605,20910.0,20909.0,0.01544948]
[1674071799848,2.163795,20910.0,20909.0,0.01544948]
[1674071801160,2.013795,20910.0,20909.0,0.01544948]
[1674071808173,2.013795,20910.0,20909.0,0.0153412]
[1674071811443,1.858795,20910.0,20909.0,0.0153412]
[1674071814443,1.380555,20910.0,20909.0,0.0153412]
[1674071814725,1.04748,20910.0,20909.0,0.0153412]
[1674071815241,0.091,20910.0,20909.0,0.3153412]
[1674071815754,0.091,20910.0,20909.0,0.4653412]
[1674071816027,0.091,20910.0,20909.0,0.9436032]
[1674071816273,0.0767,20913.0,20909.0,1.4303652]
[1674071816537,0.051,20910.0,20909.0,1.62568617]
[1674071816794,0.051,20910.0,20909.0,1.4303652]
[1674071817052,0.051,20910.0,20909.0,1.4313652]
[1674071817053,0.102,20910.0,20909.0,1.4313652]
[1674071817370,0.051,20910.0,20909.0,1.2803652]
[1674071817525,0.051,20910.0,20909.0,1.2813652]
[1674071817768,0.0767,20913.0,20909.0,1.2803652]
[1674071818017,0.051,20910.0,20909.0,1.47568617]
[1674071818308,0.051,20910.0,20909.0,1.2813652]
[1674071819071,0.051,20910.0,20909.0,0.8031032]
[1674071819350,0.62816,20914.0,20909.0,1.2803652]
[1674071819351,0.855153,20914.0,20909.0,1.2803652]
[1674071819573,0.051,20913.0,20910.0,0.19432097]
[1674071819846,0.051,20913.0,20910.0,0.478228]
[1674071820020,0.323156,20912.0,20910.0,0.478228]
[1674071820285,0.325569,20911.0,20910.0,0.956468]
[1674071820541,0.956316,20914.0,20910.0,1.256468]
[1674071820800,0.082,20913.0,20910.0,1.15178897]
[1674071821072,0.478168,20914.0,20910.0,0.956468]
[1674071821341,0.082,20912.0,20910.0,1.15178897]
[1674071821569,0.082,20912.0,20910.0,0.957468]
[1674071822583,0.311546,20911.0,20910.0,0.956468]
[1674071822826,0.311546,20911.0,20910.0,0.001]
[1674071823098,0.311546,20911.0,20909.0,0.9718312]
[1674071823344,0.478217,20911.0,20910.0,0.001]
[1674071823660,0.478217,20911.0,20909.0,0.0153412]
[1674071823661,0.806,20911.0,20909.0,0.0153412]
[1674071823877,0.560217,20911.0,20910.0,0.001]
[1674071824118,0.786873,20911.0,20909.0,0.0153412]
[1674071824382,0.34857,20910.0,20909.0,0.0163412]
[1674071825638,0.051,20911.0,20909.0,0.3163412]
[1674071825909,0.529218,20911.0,20909.0,0.3163412]
[1674071826184,0.529218,20911.0,20909.0,0.3153412]
[1674071826185,0.478218,20911.0,20909.0,0.3153412]
[1674071826415,0.051,20910.0,20909.0,0.3153412]
[1674071826932,0.051,20910.0,20909.0,0.3163412]
[1674071827685,0.478215,20912.0,20909.0,0.3153412]
[1674071827953,0.478184,20913.0,20909.0,1.46618617]
[1674071828984,0.478162,20914.0,20909.0,1.94444817]
[1674071829158,0.051,20913.0,20909.0,1.94544817]
[1674071829419,0.051,20913.0,20909.0,1.7511272]
[1674071829937,0.628161,20914.0,20909.0,1.7501272]
[1674071830196,0.679164,20914.0,20909.0,1.94544817]
[1674071830423,0.628164,20914.0,20909.0,1.94444817]
[1674071830725,0.36794936,20913.0,20909.0,1.94544817]
[1674071831002,0.051,20913.0,20909.0,1.7511272]
[1674071831753,0.15,20914.0,20909.0,1.7501272]
[1674071832009,0.15,20914.0,20910.0,0.20654052]
[1674071832010,0.051,20914.0,20910.0,0.20654052]
[1674071832234,0.956298,20914.0,20911.0,0.778207]
[1674071832741,0.326554,20913.0,20911.0,0.778207]
[1674071833000,0.330973,20912.0,20911.0,0.778207]
[1674071833280,0.956336,20914.0,20911.0,0.778207]
[1674071833524,1.038316,20914.0,20911.0,0.3]
[1674071833779,0.328224,20913.0,20911.0,0.3]
[1674071834062,0.329322,20912.0,20911.0,0.301]
[1674071834332,0.560174,20913.0,20911.0,0.001]
[1674071834570,0.340653,20912.0,20911.0,0.301]
[1674071834834,0.340653,20912.0,20911.0,0.3]
[1674071835169,0.818847,20912.0,20911.0,0.001]
[1674071835400,0.818847,20912.0,20909.0,0.06469163]
[1674071835650,0.818847,20912.0,20911.0,0.001]
[1674071835651,0.956388,20912.0,20911.0,0.001]
[1674071835943,1.276931,20912.0,20909.0,0.06469163]
[1674071836190,1.188388,20912.0,20909.0,0.06469163]
[1674071836498,0.316888,20911.0,20909.0,0.06469163]
[1674071836783,0.317072,20910.0,20909.0,0.07269163]
[1674071837033,0.317072,20910.0,20909.0,0.0233412]
[1674071837260,1.273552,20910.0,20909.0,0.0233412]
[1674071837807,0.795312,20910.0,20909.0,0.0233412]
[1674071838072,0.795312,20910.0,20909.0,0.0153412]
[1674071838330,0.795312,20910.0,20909.0,0.0233412]
[1674071838597,0.795312,20910.0,20909.0,0.0153412]
[1674071838833,0.321072,20910.0,20909.0,0.0233412]
[1674071839104,0.799312,20910.0,20909.0,0.0233412]
[1674071839354,1.751792,20910.0,20909.0,0.0153412]
[1674071839886,1.833792,20910.0,20909.0,0.0153412]
[1674071840140,1.86616325,20910.0,20909.0,1e-08]
[1674071840721,1.751792,20910.0,20909.0,1e-08]
[1674071840983,1.834792,20910.0,20909.0,0.00100001]
[1674071841496,1.94916325,20910.0,20909.0,0.00100001]
[1674071841765,1.834792,20910.0,20909.0,0.00100001]
[1674071842506,1.94916325,20910.0,20909.0,0.00100001]
[1674071843542,2.43988739,20910.0,20909.0,0.00100001]
[1674071843806,2.26828733,20910.0,20909.0,0.00100001]
[1674071844066,2.43988739,20910.0,20909.0,0.00100001]
[1674071845073,2.26828733,20910.0,20909.0,0.00100001]
[1674071847721,3.74292418,20910.0,20909.0,0.00100001]
[1674071848861,3.66011405,20910.0,20909.0,1e-08]
[1674071849115,3.66008193,20910.0,20909.0,1e-08]
[1674071849364,3.37837395,20910.0,20909.0,1e-08]
[1674071849662,3.14941632,20910.0,20909.0,1e-08]
[1674071849936,3.75000942,20910.0,20909.0,1e-08]
[1674071850454,4.22721111,20910.0,20909.0,1e-08]
[1674071850736,3.99825382,20910.0,20909.0,1e-08]
[1674071851683,3.3931803,20910.0,20909.0,1e-08]
[1674071852475,3.90666973,20910.0,20909.0,1e-08]
[1674071852979,4.22647849,20910.0,20909.0,1e-08]
[1674071853469,3.02252653,20910.0,20909.0,1e-08]
[1674071853715,3.19412842,20910.0,20909.0,1e-08]
[1674071853978,3.07969145,20910.0,20909.0,1e-08]
[1674071854654,2.98869145,20910.0,20909.0,1e-08]
[1674071854907,3.07969145,20910.0,20909.0,1e-08]
[1674071855681,3.19412842,20910.0,20909.0,1e-08]
[1674071856471,3.19406642,20910.0,20909.0,1e-08]
[1674071856758,2.96525766,20910.0,20909.0,1e-08]
[1674071857494,3.10306642,20910.0,20909.0,1e-08]
[1674071857713,2.96525766,20910.0,20909.0,1e-08]
[1674071857971,2.64613358,20910.0,20909.0,1e-08]
[1674071858222,2.55513358,20910.0,20909.0,1e-08]
[1674071858459,2.66948176,20910.0,20909.0,1e-08]
[1674071858715,2.76048224,20910.0,20909.0,1e-08]
[1674071859693,2.64613358,20910.0,20909.0,1e-08]
[1674071859946,2.76047306,20910.0,20909.0,1e-08]
[1674071860456,2.64613358,20910.0,20909.0,1e-08]
[1674071861056,2.87494234,20910.0,20909.0,1e-08]
[1674071861263,2.61240245,20910.0,20909.0,1e-08]
[1674071861550,3.12157322,20910.0,20909.0,1e-08]
[1674071861791,3.04105839,20910.0,20909.0,1e-08]
[1674071862114,3.21256262,20910.0,20909.0,1e-08]
[1674071862345,0.15,20909.0,20908.0,0.01680735]
[1674071862614,2.25776607,20909.0,20908.0,0.01680735]
[1674071862875,2.08625903,20909.0,20908.0,0.01680735]
[1674071863950,2.17725903,20909.0,20908.0,0.01680735]
[1674071864462,2.08625903,20909.0,20908.0,0.01680735]
[1674071864732,2.17725903,20909.0,20908.0,0.01680735]
[1674071865326,2.88664614,20909.0,20908.0,0.01680735]
[1674071865810,2.65783738,20909.0,20908.0,0.01680735]
[1674071866061,2.88664614,20909.0,20908.0,0.01680735]
[1674071866641,3.9182483,20909.0,20908.0,0.01680735]
[1674071866926,4.25802033,20909.0,20908.0,0.01680735]
[1674071867185,0.15,20908.0,20907.0,0.00105188]
[1674071867459,3.22895446,20908.0,20907.0,0.00105188]
[1674071867706,3.53507906,20908.0,20907.0,0.00105188]
[1674071867990,2.22034245,20908.0,20907.0,0.00105188]
[1674071868294,3.05010949,20908.0,20907.0,0.00105188]
[1674071868562,3.98961914,20908.0,20907.0,0.00105188]
[1674071868839,3.38963826,20908.0,20907.0,0.00105188]
[1674071869150,3.87224045,20908.0,20907.0,0.00105188]
[1674071869400,4.100878,20908.0,20907.0,0.00105188]